[Event "January 2 Late 2024"]
[Site "https://www.chess.com"]
[Date "2024.01.02"]
[Round "8"]
[White "Melian, Juan Sebastian"]
[Black "Travkina, Anastasia"]
[Result "1-0"]
[Board "80"]
[TimeControl "180+1"]
[WhiteFideId "3706575"]
[BlackFideId "24129151"]
[WhiteElo "2605"]
[BlackElo "2449"]
[WhiteTeam "PAR"]
[BlackTeam "RUS"]
[WhiteClock "0:00:07"]
[BlackClock "0:00:11"]

1. e4 {[%clk 0:03:00]}  c5 {[%clk 0:03:00]} 2. b3 {[%clk 0:03:01]}  d6 {[%clk 0:02:58]} 3. Bb2 {[%clk 0:03:00]}  Nf6 {[%clk 0:02:58]} 4. Bb5+ {[%clk 0:03:00]}  Bd7 {[%clk 0:02:57]} 5. Bxd7+ {[%clk 0:03:00]}  Qxd7 {[%clk 0:02:58]} 6. d3 {[%clk 0:03:01]}  Nc6 {[%clk 0:02:58]} 7. Nd2 {[%clk 0:03:02]}  g6 {[%clk 0:02:58]} 8. f4 {[%clk 0:03:02]}  Bg7 {[%clk 0:02:59]} 9. Ngf3 {[%clk 0:03:02]}  O-O {[%clk 0:02:58]} 10. O-O {[%clk 0:03:02]}  Rfe8 {[%clk 0:02:52]} 11. Qe1 {[%clk 0:02:49]}  Nxe4 {[%clk 0:02:41]} 12. Bxg7 {[%clk 0:02:33]}  Nxd2 {[%clk 0:02:41]} 13. Nxd2 {[%clk 0:02:33]}  Kxg7 {[%clk 0:02:41]} 14. f5 {[%clk 0:02:34]}  Nd4 {[%clk 0:02:34]} 15. fxg6 {[%clk 0:02:16]}  fxg6 {[%clk 0:02:23]} 16. Ne4 {[%clk 0:01:58]}  Rf8 {[%clk 0:02:16]} 17. Qd2 {[%clk 0:01:40]}  h6 {[%clk 0:02:03]} 18. c3 {[%clk 0:01:36]}  Nc6 {[%clk 0:02:03]} 19. Qe3 {[%clk 0:01:27]}  b6 {[%clk 0:01:48]} 20. Qg3 {[%clk 0:01:20]}  d5 {[%clk 0:01:44]} 21. Nd2 {[%clk 0:01:19]}  Qd6 {[%clk 0:01:29]} 22. Qg4 {[%clk 0:01:07]}  Ne5 {[%clk 0:01:24]} 23. Qh3 {[%clk 0:01:04]}  Rf6 {[%clk 0:01:17]} 24. Rxf6 {[%clk 0:01:01]}  exf6 {[%clk 0:01:12]} 25. Re1 {[%clk 0:00:58]}  Nf7 {[%clk 0:01:08]} 26. Re6 {[%clk 0:00:50]}  Qf4 {[%clk 0:01:07]} 27. Nf3 {[%clk 0:00:34]}  Qc1+ {[%clk 0:01:04]} 28. Re1 {[%clk 0:00:32]}  Qxc3 {[%clk 0:01:02]} 29. Qd7 {[%clk 0:00:29]}  Qxd3 {[%clk 0:00:59]} 30. h3 {[%clk 0:00:18]}  c4 {[%clk 0:00:56]} 31. Rf1 {[%clk 0:00:07]}  Qe3+ {[%clk 0:00:49]} 32. Kh1 {[%clk 0:00:05]}  c3 {[%clk 0:00:32]} 33. Qxd5 {[%clk 0:00:04]}  Re8 {[%clk 0:00:30]} 34. Qc4 {[%clk 0:00:03]}  Qe2 {[%clk 0:00:29]} 35. Qxe2 {[%clk 0:00:02]}  Rxe2 {[%clk 0:00:30]} 36. Rc1 {[%clk 0:00:02]}  c2 {[%clk 0:00:30]} 37. Kg1 {[%clk 0:00:02]}  Ne5 {[%clk 0:00:30]} 38. Kf1 {[%clk 0:00:02]}  Re3 {[%clk 0:00:23]} 39. Nxe5 {[%clk 0:00:02]}  fxe5 {[%clk 0:00:20]} 40. Rxc2 {[%clk 0:00:03]}  Kf6 {[%clk 0:00:21]} 41. Kf2 {[%clk 0:00:03]}  Re4 {[%clk 0:00:21]} 42. Rc6+ {[%clk 0:00:04]}  Kf5 {[%clk 0:00:21]} 43. Rc7 {[%clk 0:00:03]}  a5 {[%clk 0:00:21]} 44. Rc6 {[%clk 0:00:02]}  Rd4 {[%clk 0:00:20]} 45. Ke3 {[%clk 0:00:02]}  Re4+ {[%clk 0:00:20]} 46. Kf3 {[%clk 0:00:03]}  Rf4+ {[%clk 0:00:21]} 47. Ke3 {[%clk 0:00:03]}  Re4+ {[%clk 0:00:21]} 48. Kf2 {[%clk 0:00:04]}  Rb4 {[%clk 0:00:22]} 49. Ke3 {[%clk 0:00:03]}  a4 {[%clk 0:00:22]} 50. Rc3 {[%clk 0:00:02]}  a3 {[%clk 0:00:22]} 51. g4+ {[%clk 0:00:02]}  Kg5 {[%clk 0:00:21]} 52. Rc6 {[%clk 0:00:03]}  h5 {[%clk 0:00:17]} 53. gxh5 {[%clk 0:00:03]}  gxh5 {[%clk 0:00:18]} 54. Re6 {[%clk 0:00:03]}  Kh4 {[%clk 0:00:17]} 55. Rxe5 {[%clk 0:00:03]}  Kxh3 {[%clk 0:00:17]} 56. Rxh5+ {[%clk 0:00:04]}  Kg4 {[%clk 0:00:18]} 57. Rh6 {[%clk 0:00:04]}  Rb5 {[%clk 0:00:17]} 58. Kd3 {[%clk 0:00:04]}  Kf3 {[%clk 0:00:17]} 59. Kc4 {[%clk 0:00:03]}  Rc5+ {[%clk 0:00:18]} 60. Kb4 {[%clk 0:00:04]}  Rc2 {[%clk 0:00:18]} 61. Kxa3 {[%clk 0:00:05]}  b5 {[%clk 0:00:19]} 62. Rb6 {[%clk 0:00:05]}  Rc5 {[%clk 0:00:18]} 63. Kb4 {[%clk 0:00:05]}  Rc2 {[%clk 0:00:19]} 64. a3 {[%clk 0:00:06]}  Rb2 {[%clk 0:00:19]} 65. Rxb5 {[%clk 0:00:06]}  Ke4 {[%clk 0:00:20]} 66. Rc5 {[%clk 0:00:07]}  Kd4 {[%clk 0:00:21]} 67. Rc8 {[%clk 0:00:07]}  Kd5 {[%clk 0:00:21]} 68. Rd8+ {[%clk 0:00:08]}  Kc6 {[%clk 0:00:21]} 69. a4 {[%clk 0:00:08]}  Kb6 {[%clk 0:00:21]} 70. Rd4 {[%clk 0:00:09]}  Rb1 {[%clk 0:00:21]} 71. Rd6+ {[%clk 0:00:09]}  Kc7 {[%clk 0:00:21]} 72. Rh6 {[%clk 0:00:10]}  Kb7 {[%clk 0:00:21]} 73. a5 {[%clk 0:00:11]}  Ka7 {[%clk 0:00:22]} 74. a6 {[%clk 0:00:10]}  Ra1 {[%clk 0:00:22]} 75. Kb5 {[%clk 0:00:10]}  Rg1 {[%clk 0:00:23]} 76. b4 {[%clk 0:00:10]}  Rg5+ {[%clk 0:00:23]} 77. Ka4 {[%clk 0:00:11]}  Rg4 {[%clk 0:00:23]} 78. Ka5 {[%clk 0:00:11]}  Rg5+ {[%clk 0:00:23]} 79. b5 {[%clk 0:00:11]}  Rf5 {[%clk 0:00:24]} 80. Rh7+ {[%clk 0:00:11]}  Ka8 {[%clk 0:00:24]} 81. Rd7 {[%clk 0:00:09]}  Rg5 {[%clk 0:00:23]} 82. Kb6 {[%clk 0:00:09]}  Rg6+ {[%clk 0:00:22]} 83. Ka5 {[%clk 0:00:08]}  Rg5 {[%clk 0:00:23]} 84. Ka4 {[%clk 0:00:08]}  Rg4+ {[%clk 0:00:23]} 85. Kb3 {[%clk 0:00:09]}  Rg5 {[%clk 0:00:21]} 86. Kb4 {[%clk 0:00:09]}  Rg4+ {[%clk 0:00:21]} 87. Kc5 {[%clk 0:00:09]}  Rg5+ {[%clk 0:00:22]} 88. Rd5 {[%clk 0:00:10]}  Rg1 {[%clk 0:00:18]} 89. b6 {[%clk 0:00:10]}  Rc1+ {[%clk 0:00:18]} 90. Kd6 {[%clk 0:00:11]}  Kb8 {[%clk 0:00:17]} 91. Ke7 {[%clk 0:00:11]}  Re1+ {[%clk 0:00:17]} 92. Kd7 {[%clk 0:00:10]}  Rb1 {[%clk 0:00:17]} 93. Kc6 {[%clk 0:00:09]}  Rc1+ {[%clk 0:00:17]} 94. Rc5 {[%clk 0:00:09]}  Ra1 {[%clk 0:00:16]} 95. a7+ {[%clk 0:00:09]}  Ka8 {[%clk 0:00:16]} 96. Kc7 {[%clk 0:00:09]}  Rb1 {[%clk 0:00:13]} 97. Rc6 {[%clk 0:00:07]}  Rxb6 {[%clk 0:00:11]} 98. Rxb6 {[%clk 0:00:07]} 1-0

[Event "January 2 Late 2024"]
[Site "https://www.chess.com"]
[Date "2024.01.02"]
[Round "8"]
[White "CRObliterator"]
[Black "Roberson, Peter T"]
[Result "0-1"]
[Board "84"]
[TimeControl "180+1"]
[BlackFideId "412384"]
[WhiteElo "2378"]
[BlackElo "2582"]
[BlackTeam "ENG"]
[WhiteClock "0:00:01"]
[BlackClock "0:00:23"]

1. e4 {[%clk 0:03:00]}  c5 {[%clk 0:02:59]} 2. c3 {[%clk 0:03:00]}  d6 {[%clk 0:02:59]} 3. d4 {[%clk 0:02:59]}  Nf6 {[%clk 0:03:00]} 4. Bd3 {[%clk 0:02:57]}  g6 {[%clk 0:02:58]} 5. f3 {[%clk 0:02:53]}  Bg7 {[%clk 0:02:58]} 6. Be3 {[%clk 0:02:53]}  O-O {[%clk 0:02:58]} 7. Ne2 {[%clk 0:02:53]}  Nc6 {[%clk 0:02:55]} 8. h4 {[%clk 0:02:50]}  cxd4 {[%clk 0:02:51]} 9. cxd4 {[%clk 0:02:49]}  Qb6 {[%clk 0:02:51]} 10. Nbc3 {[%clk 0:02:45]}  Qxb2 {[%clk 0:02:50]} 11. Rb1 {[%clk 0:02:39]}  Qa3 {[%clk 0:02:50]} 12. Rb3 {[%clk 0:02:24]}  Qa5 {[%clk 0:02:48]} 13. Rb5 {[%clk 0:02:23]}  Qc7 {[%clk 0:02:45]} 14. h5 {[%clk 0:02:22]}  a6 {[%clk 0:02:44]} 15. Rb1 {[%clk 0:01:56]}  Nxh5 {[%clk 0:02:44]} 16. Rxh5 {[%clk 0:01:53]}  gxh5 {[%clk 0:02:44]} 17. Nd5 {[%clk 0:01:53]}  Qa5+ {[%clk 0:02:42]} 18. Bd2 {[%clk 0:01:49]}  Qa3 {[%clk 0:02:39]} 19. Rb3 {[%clk 0:01:32]}  Qxa2 {[%clk 0:02:31]} 20. Nec3 {[%clk 0:01:03]}  Qa5 {[%clk 0:02:15]} 21. Nb6 {[%clk 0:00:58]}  Nxd4 {[%clk 0:02:14]} 22. Ncd5 {[%clk 0:00:49]}  Qa2 {[%clk 0:01:57]} 23. Rc3 {[%clk 0:00:30]}  Be6 {[%clk 0:01:50]} 24. Bb1 {[%clk 0:00:06]}  Qb2 {[%clk 0:01:41]} 25. Rc7 {[%clk 0:00:01]}  Nb3 {[%clk 0:01:19]} 26. Bc3 {[%clk 0:00:02]}  Bxc3+ {[%clk 0:01:14]} 27. Rxc3 {[%clk 0:00:03]}  Nc5 {[%clk 0:00:51]} 28. Nxe7+ {[%clk 0:00:03]}  Kh8 {[%clk 0:00:49]} 29. Rc2 {[%clk 0:00:03]}  Qxb6 {[%clk 0:00:45]} 30. Qd4+ {[%clk 0:00:03]}  f6 {[%clk 0:00:45]} 31. Rb2 {[%clk 0:00:03]}  Qc7 {[%clk 0:00:37]} 32. Nd5 {[%clk 0:00:03]}  Bxd5 {[%clk 0:00:37]} 33. exd5 {[%clk 0:00:04]}  Rae8+ {[%clk 0:00:37]} 34. Kf2 {[%clk 0:00:04]}  Re5 {[%clk 0:00:36]} 35. Bc2 {[%clk 0:00:02]}  Nd7 {[%clk 0:00:27]} 36. Bb1 {[%clk 0:00:03]}  Qc5 {[%clk 0:00:26]} 37. Qxc5 {[%clk 0:00:02]}  Nxc5 {[%clk 0:00:26]} 38. Rb6 {[%clk 0:00:02]}  Rd8 {[%clk 0:00:26]} 39. Rb2 {[%clk 0:00:01]}  Kg7 {[%clk 0:00:25]} 40. Ba2 {[%clk 0:00:02]}  h4 {[%clk 0:00:25]} 41. Rb6 {[%clk 0:00:02]}  Rg5 {[%clk 0:00:24]} 42. Bc4 {[%clk 0:00:03]}  Kg6 {[%clk 0:00:23]} 43. Bd3+ {[%clk 0:00:01]}  Nxd3+ {[%clk 0:00:23]} 0-1

[Event "January 2 Late 2024"]
[Site "https://www.chess.com"]
[Date "2024.01.02"]
[Round "8"]
[White "Ghosh, Chanchal Kumer"]
[Black "Grinev, Valeriy"]
[Result "1-0"]
[Board "86"]
[TimeControl "180+1"]
[WhiteFideId "10201858"]
[BlackFideId "14117517"]
[WhiteElo "2150"]
[BlackElo "2558"]
[WhiteTeam "BAN"]
[BlackTeam "UKR"]
[WhiteClock "0:01:04"]
[BlackClock "0:00:28"]

1. e4 {[%clk 0:03:00]}  c5 {[%clk 0:03:00]} 2. Nf3 {[%clk 0:03:01]}  Nc6 {[%clk 0:03:01]} 3. d4 {[%clk 0:03:01]}  cxd4 {[%clk 0:03:02]} 4. Nxd4 {[%clk 0:03:02]}  e5 {[%clk 0:03:03]} 5. Nxc6 {[%clk 0:03:01]}  bxc6 {[%clk 0:03:03]} 6. c4 {[%clk 0:03:02]}  Nf6 {[%clk 0:03:04]} 7. Bd3 {[%clk 0:03:02]}  Bb4+ {[%clk 0:03:04]} 8. Nc3 {[%clk 0:03:00]}  Bxc3+ {[%clk 0:03:02]} 9. bxc3 {[%clk 0:03:00]}  O-O {[%clk 0:03:02]} 10. O-O {[%clk 0:03:01]}  h6 {[%clk 0:03:03]} 11. c5 {[%clk 0:02:53]}  d5 {[%clk 0:03:02]} 12. cxd6 {[%clk 0:02:53]}  Qxd6 {[%clk 0:03:01]} 13. Qe2 {[%clk 0:02:53]}  Rd8 {[%clk 0:03:00]} 14. Bc4 {[%clk 0:02:53]}  Qc5 {[%clk 0:03:00]} 15. Be3 {[%clk 0:02:52]}  Qa5 {[%clk 0:03:00]} 16. Rad1 {[%clk 0:02:41]}  Nxe4 {[%clk 0:02:58]} 17. Rxd8+ {[%clk 0:02:33]}  Qxd8 {[%clk 0:02:57]} 18. Bxh6 {[%clk 0:02:32]}  Nxc3 {[%clk 0:02:48]} 19. Qxe5 {[%clk 0:02:05]}  gxh6 {[%clk 0:02:41]} 20. Qxc3 {[%clk 0:02:01]}  Bf5 {[%clk 0:02:39]} 21. Qf3 {[%clk 0:01:58]}  Qc8 {[%clk 0:02:05]} 22. Re1 {[%clk 0:01:40]}  a5 {[%clk 0:01:57]} 23. Re7 {[%clk 0:01:34]}  Rb8 {[%clk 0:01:28]} 24. Qg3+ {[%clk 0:01:12]}  Bg4 {[%clk 0:01:09]} 25. h3 {[%clk 0:01:11]}  Rb1+ {[%clk 0:00:47]} 26. Kh2 {[%clk 0:01:11]}  h5 {[%clk 0:00:45]} 27. hxg4 {[%clk 0:01:08]}  hxg4 {[%clk 0:00:46]} 28. Rxf7 {[%clk 0:01:05]}  Kh8 {[%clk 0:00:31]} 29. Qh4+ {[%clk 0:01:04]}  Kg8 {[%clk 0:00:30]} 30. Qg5+ {[%clk 0:01:04]}  Kh8 {[%clk 0:00:28]} 31. Qg7# {[%clk 0:01:04]} 1-0

[Event "January 2 Late 2024"]
[Site "https://www.chess.com"]
[Date "2024.01.02"]
[Round "8"]
[White "Suvorov, Alexander"]
[Black "Hamidi, Amir Mohammad"]
[Result "1-0"]
[Board "88"]
[TimeControl "180+1"]
[WhiteFideId "12977063"]
[BlackFideId "12563285"]
[WhiteElo "2475"]
[BlackElo "2682"]
[WhiteTeam "GER"]
[BlackTeam "IRI"]
[WhiteClock "0:00:38"]
[BlackClock "0:00:00"]

1. e4 {[%clk 0:03:00]}  c5 {[%clk 0:02:59]} 2. Nf3 {[%clk 0:02:57]}  Nc6 {[%clk 0:02:59]} 3. Nc3 {[%clk 0:02:55]}  Nf6 {[%clk 0:02:59]} 4. g3 {[%clk 0:02:51]}  d5 {[%clk 0:02:57]} 5. exd5 {[%clk 0:02:52]}  Nxd5 {[%clk 0:02:58]} 6. Bg2 {[%clk 0:02:52]}  Nxc3 {[%clk 0:02:57]} 7. bxc3 {[%clk 0:02:53]}  g6 {[%clk 0:02:57]} 8. O-O {[%clk 0:02:41]}  Bg7 {[%clk 0:02:56]} 9. Re1 {[%clk 0:02:32]}  O-O {[%clk 0:02:54]} 10. Rb1 {[%clk 0:02:33]}  Rb8 {[%clk 0:02:36]} 11. Ng5 {[%clk 0:02:26]}  Bf5 {[%clk 0:01:00]} 12. Ne4 {[%clk 0:02:16]}  Qa5 {[%clk 0:00:52]} 13. Rb2 {[%clk 0:02:09]}  Rfd8 {[%clk 0:00:49]} 14. Qe2 {[%clk 0:02:05]}  Rd7 {[%clk 0:00:36]} 15. Rb5 {[%clk 0:01:36]}  Qxa2 {[%clk 0:00:29]} 16. Nxc5 {[%clk 0:01:37]}  Rc7 {[%clk 0:00:18]} 17. d4 {[%clk 0:01:35]}  Qxc2 {[%clk 0:00:17]} 18. Qxc2 {[%clk 0:01:25]}  Bxc2 {[%clk 0:00:18]} 19. Bf4 {[%clk 0:01:25]}  e5 {[%clk 0:00:17]} 20. dxe5 {[%clk 0:01:26]}  a6 {[%clk 0:00:16]} 21. Rb6 {[%clk 0:01:16]}  g5 {[%clk 0:00:14]} 22. Bxg5 {[%clk 0:01:09]}  Nxe5 {[%clk 0:00:13]} 23. Nxa6 {[%clk 0:01:07]}  Rcc8 {[%clk 0:00:08]} 24. Nxb8 {[%clk 0:01:07]}  Rxb8 {[%clk 0:00:09]} 25. Bf4 {[%clk 0:01:03]}  Rd8 {[%clk 0:00:06]} 26. Bxe5 {[%clk 0:00:53]}  Bxe5 {[%clk 0:00:07]} 27. Rxe5 {[%clk 0:00:50]}  Rd1+ {[%clk 0:00:07]} 28. Bf1 {[%clk 0:00:50]}  Bd3 {[%clk 0:00:08]} 29. Kg2 {[%clk 0:00:51]}  Bxf1+ {[%clk 0:00:07]} 30. Kf3 {[%clk 0:00:52]}  Rd3+ {[%clk 0:00:07]} 31. Re3 {[%clk 0:00:52]}  Rd7 {[%clk 0:00:07]} 32. h4 {[%clk 0:00:48]}  Bc4 {[%clk 0:00:06]} 33. Rb4 {[%clk 0:00:47]}  Bd5+ {[%clk 0:00:06]} 34. Kf4 {[%clk 0:00:47]}  Bc6 {[%clk 0:00:07]} 35. Rd4 {[%clk 0:00:46]}  Rc7 {[%clk 0:00:07]} 36. g4 {[%clk 0:00:42]}  Rc8 {[%clk 0:00:07]} 37. g5 {[%clk 0:00:40]}  Ra8 {[%clk 0:00:07]} 38. h5 {[%clk 0:00:41]}  Ra5 {[%clk 0:00:07]} 39. h6 {[%clk 0:00:39]}  Kf8 {[%clk 0:00:00]} 40. Rd8+ {[%clk 0:00:38]} 1-0

[Event "January 2 Late 2024"]
[Site "https://www.chess.com"]
[Date "2024.01.02"]
[Round "8"]
[White "Mizzi, Jack"]
[Black "Zhu, Jiner"]
[Result "1-0"]
[Board "89"]
[TimeControl "180+1"]
[WhiteFideId "5602521"]
[BlackFideId "8608059"]
[WhiteElo "2452"]
[BlackElo "2653"]
[WhiteTeam "MLT"]
[BlackTeam "CHN"]
[WhiteClock "0:01:00"]
[BlackClock "0:01:10"]

1. d4 {[%clk 0:03:00]}  Nf6 {[%clk 0:02:59]} 2. c4 {[%clk 0:03:00]}  g6 {[%clk 0:03:00]} 3. g3 {[%clk 0:03:00]}  Bg7 {[%clk 0:03:01]} 4. Bg2 {[%clk 0:03:00]}  O-O {[%clk 0:03:02]} 5. Nf3 {[%clk 0:03:01]}  d6 {[%clk 0:03:02]} 6. O-O {[%clk 0:03:01]}  Nc6 {[%clk 0:03:02]} 7. d5 {[%clk 0:03:00]}  Na5 {[%clk 0:03:01]} 8. Nbd2 {[%clk 0:02:59]}  c5 {[%clk 0:03:00]} 9. Qc2 {[%clk 0:02:56]}  a6 {[%clk 0:03:00]} 10. a4 {[%clk 0:02:48]}  e5 {[%clk 0:02:57]} 11. e4 {[%clk 0:02:27]}  Nh5 {[%clk 0:02:56]} 12. Nb3 {[%clk 0:02:11]}  Nxb3 {[%clk 0:02:46]} 13. Qxb3 {[%clk 0:02:12]}  f5 {[%clk 0:02:45]} 14. exf5 {[%clk 0:02:10]}  gxf5 {[%clk 0:02:45]} 15. Ng5 {[%clk 0:02:09]}  Qe8 {[%clk 0:02:39]} 16. Ne6 {[%clk 0:02:07]}  Rf7 {[%clk 0:02:39]} 17. Qf3 {[%clk 0:02:03]}  Nf6 {[%clk 0:02:32]} 18. Qxf5 {[%clk 0:02:02]}  Re7 {[%clk 0:01:55]} 19. f4 {[%clk 0:01:58]}  Bxe6 {[%clk 0:01:52]} 20. dxe6 {[%clk 0:01:58]}  Rxe6 {[%clk 0:01:52]} 21. Bxb7 {[%clk 0:01:54]}  Rb8 {[%clk 0:01:51]} 22. Bxa6 {[%clk 0:01:50]}  e4 {[%clk 0:01:48]} 23. Bb5 {[%clk 0:01:49]}  Qe7 {[%clk 0:01:47]} 24. Be3 {[%clk 0:01:46]}  Rf8 {[%clk 0:01:36]} 25. a5 {[%clk 0:01:40]}  h5 {[%clk 0:01:36]} 26. Qg6 {[%clk 0:01:34]}  Ng4 {[%clk 0:01:34]} 27. Qxh5 {[%clk 0:01:30]}  Nxe3 {[%clk 0:01:34]} 28. Rfe1 {[%clk 0:01:29]}  Nc2 {[%clk 0:01:34]} 29. Bc6 {[%clk 0:01:27]}  Nxe1 {[%clk 0:01:32]} 30. Rxe1 {[%clk 0:01:25]}  Rh6 {[%clk 0:01:32]} 31. Rxe4 {[%clk 0:01:12]}  Qxe4 {[%clk 0:01:29]} 32. Bd5+ {[%clk 0:01:11]}  Kh8 {[%clk 0:01:18]} 33. Qxh6+ {[%clk 0:01:11]}  Bxh6 {[%clk 0:01:18]} 34. Bxe4 {[%clk 0:01:11]}  Rb8 {[%clk 0:01:12]} 35. a6 {[%clk 0:01:09]}  Rxb2 {[%clk 0:01:12]} 36. a7 {[%clk 0:01:09]}  Ra2 {[%clk 0:01:12]} 37. a8=Q+ {[%clk 0:01:08]}  Rxa8 {[%clk 0:01:13]} 38. Bxa8 {[%clk 0:01:09]}  Kg7 {[%clk 0:01:12]} 39. Kg2 {[%clk 0:01:02]}  Kf6 {[%clk 0:01:12]} 40. Kf3 {[%clk 0:01:02]}  Kg6 {[%clk 0:01:10]} 41. Ke4 {[%clk 0:01:02]}  Bg7 {[%clk 0:01:10]} 42. g4 {[%clk 0:01:02]}  Bd4 {[%clk 0:01:10]} 43. h4 {[%clk 0:01:02]}  Bf2 {[%clk 0:01:10]} 44. h5+ {[%clk 0:01:02]}  Kh6 {[%clk 0:01:11]} 45. Kf5 {[%clk 0:01:02]}  Bg3 {[%clk 0:01:11]} 46. Bc6 {[%clk 0:01:01]}  Bh2 {[%clk 0:01:10]} 47. Be8 {[%clk 0:01:01]}  Bg3 {[%clk 0:01:10]} 48. g5+ {[%clk 0:01:01]}  Kg7 {[%clk 0:01:11]} 49. Kg4 {[%clk 0:01:01]}  Kf8 {[%clk 0:01:10]} 50. Kxg3 {[%clk 0:01:00]} 1-0

[Event "January 2 Late 2024"]
[Site "https://www.chess.com"]
[Date "2024.01.02"]
[Round "8"]
[White "Haydon, David L"]
[Black "Dobrijevic, Milan"]
[Result "0-1"]
[Board "90"]
[TimeControl "180+1"]
[WhiteFideId "415405"]
[BlackFideId "931632"]
[WhiteElo "2647"]
[BlackElo "2440"]
[WhiteTeam "ENG"]
[BlackTeam "SRB"]
[WhiteClock "0:00:37"]
[BlackClock "0:00:03"]

1. d4 {[%clk 0:03:00]}  Nf6 {[%clk 0:02:59]} 2. c4 {[%clk 0:03:01]}  g6 {[%clk 0:03:00]} 3. Nf3 {[%clk 0:03:00]}  Bg7 {[%clk 0:02:59]} 4. g3 {[%clk 0:03:01]}  O-O {[%clk 0:02:59]} 5. Bg2 {[%clk 0:03:02]}  c6 {[%clk 0:02:59]} 6. O-O {[%clk 0:03:02]}  d5 {[%clk 0:02:59]} 7. b3 {[%clk 0:03:02]}  Ne4 {[%clk 0:02:58]} 8. Bb2 {[%clk 0:03:02]}  Nd7 {[%clk 0:02:57]} 9. Nbd2 {[%clk 0:03:01]}  Ndf6 {[%clk 0:02:56]} 10. Ne5 {[%clk 0:03:00]}  Be6 {[%clk 0:02:37]} 11. Rc1 {[%clk 0:02:47]}  Qa5 {[%clk 0:02:27]} 12. Nxe4 {[%clk 0:02:45]}  Nxe4 {[%clk 0:02:25]} 13. Qc2 {[%clk 0:02:46]}  Bf5 {[%clk 0:02:16]} 14. Nd3 {[%clk 0:02:43]}  Rfd8 {[%clk 0:01:59]} 15. g4 {[%clk 0:02:34]}  Be6 {[%clk 0:01:44]} 16. f3 {[%clk 0:02:30]}  Nd2 {[%clk 0:01:30]} 17. Bc3 {[%clk 0:02:27]}  Bxd4+ {[%clk 0:01:01]} 18. Bxd4 {[%clk 0:02:16]}  dxc4 {[%clk 0:00:55]} 19. Rfd1 {[%clk 0:01:58]}  Rxd4 {[%clk 0:00:44]} 20. Rxd2 {[%clk 0:01:42]}  cxd3 {[%clk 0:00:42]} 21. Qb2 {[%clk 0:01:37]}  Rad8 {[%clk 0:00:35]} 22. e3 {[%clk 0:01:35]}  R4d7 {[%clk 0:00:31]} 23. Bf1 {[%clk 0:01:31]}  Qg5 {[%clk 0:00:28]} 24. Re1 {[%clk 0:01:27]}  c5 {[%clk 0:00:22]} 25. Qc3 {[%clk 0:01:24]}  b5 {[%clk 0:00:22]} 26. Rxd3 {[%clk 0:01:21]}  Rxd3 {[%clk 0:00:20]} 27. Bxd3 {[%clk 0:01:21]}  c4 {[%clk 0:00:15]} 28. bxc4 {[%clk 0:01:21]}  bxc4 {[%clk 0:00:15]} 29. Be2 {[%clk 0:01:18]}  Qc5 {[%clk 0:00:13]} 30. f4 {[%clk 0:01:14]}  a5 {[%clk 0:00:11]} 31. Rf1 {[%clk 0:01:11]}  Qb4 {[%clk 0:00:09]} 32. Qe5 {[%clk 0:01:05]}  Rd5 {[%clk 0:00:09]} 33. Qe4 {[%clk 0:00:56]}  c3 {[%clk 0:00:08]} 34. Qf3 {[%clk 0:00:51]}  c2 {[%clk 0:00:07]} 35. e4 {[%clk 0:00:46]}  Qc5+ {[%clk 0:00:05]} 36. Kg2 {[%clk 0:00:42]}  Rd2 {[%clk 0:00:05]} 37. f5 {[%clk 0:00:40]}  Bc4 {[%clk 0:00:05]} 38. fxg6 {[%clk 0:00:40]}  Rxe2+ {[%clk 0:00:04]} 39. Kh1 {[%clk 0:00:37]}  hxg6 {[%clk 0:00:02]} 40. Qc3 {[%clk 0:00:34]}  c1=Q {[%clk 0:00:01]} 41. Qxc1 {[%clk 0:00:33]}  Qd4 {[%clk 0:00:01]} 42. Qf4 {[%clk 0:00:33]}  Rxe4 {[%clk 0:00:01]} 43. g5 {[%clk 0:00:34]}  Rxf4 {[%clk 0:00:01]} 44. Rxf4 {[%clk 0:00:34]}  Qxf4 {[%clk 0:00:01]} 45. Kg2 {[%clk 0:00:35]}  Bd5+ {[%clk 0:00:02]} 46. Kh3 {[%clk 0:00:36]}  Qf3+ {[%clk 0:00:02]} 47. Kh4 {[%clk 0:00:36]}  Be6 {[%clk 0:00:03]} 48. h3 {[%clk 0:00:37]}  Qf4# {[%clk 0:00:03]} 0-1

[Event "January 2 Late 2024"]
[Site "https://www.chess.com"]
[Date "2024.01.02"]
[Round "8"]
[White "Zavgorodniy, Sergiy"]
[Black "Karpov, Vadim"]
[Result "1-0"]
[Board "93"]
[TimeControl "180+1"]
[WhiteFideId "14110148"]
[BlackFideId "4155025"]
[WhiteElo "2596"]
[BlackElo "2430"]
[WhiteTeam "UKR"]
[BlackTeam "RUS"]
[WhiteClock "0:01:03"]
[BlackClock "0:00:00"]

1. d4 {[%clk 0:02:51]}  e6 {[%clk 0:03:00]} 2. c4 {[%clk 0:02:49]}  d5 {[%clk 0:03:01]} 3. Nf3 {[%clk 0:02:49]}  Nf6 {[%clk 0:03:01]} 4. e3 {[%clk 0:02:50]}  Be7 {[%clk 0:03:01]} 5. Nbd2 {[%clk 0:02:50]}  O-O {[%clk 0:03:01]} 6. Bd3 {[%clk 0:02:50]}  c5 {[%clk 0:02:59]} 7. b3 {[%clk 0:02:50]}  cxd4 {[%clk 0:02:58]} 8. exd4 {[%clk 0:02:51]}  b6 {[%clk 0:02:58]} 9. Bb2 {[%clk 0:02:52]}  Bb7 {[%clk 0:02:58]} 10. O-O {[%clk 0:02:52]}  Nc6 {[%clk 0:02:59]} 11. Qe2 {[%clk 0:02:52]}  Rc8 {[%clk 0:02:59]} 12. Rac1 {[%clk 0:02:52]}  Re8 {[%clk 0:02:59]} 13. Rfd1 {[%clk 0:02:51]}  Bf8 {[%clk 0:02:59]} 14. h3 {[%clk 0:02:51]}  g6 {[%clk 0:02:58]} 15. Qe3 {[%clk 0:02:51]}  Bg7 {[%clk 0:02:58]} 16. Ne5 {[%clk 0:02:51]}  dxc4 {[%clk 0:02:41]} 17. bxc4 {[%clk 0:02:52]}  Nxe5 {[%clk 0:02:40]} 18. dxe5 {[%clk 0:02:50]}  Nd7 {[%clk 0:02:38]} 19. f4 {[%clk 0:02:42]}  Nc5 {[%clk 0:02:35]} 20. Bc2 {[%clk 0:02:40]}  Qh4 {[%clk 0:02:32]} 21. Ba3 {[%clk 0:02:33]}  Bf8 {[%clk 0:02:31]} 22. Kh2 {[%clk 0:02:31]}  Red8 {[%clk 0:02:23]} 23. g3 {[%clk 0:02:30]}  Qe7 {[%clk 0:02:17]} 24. Be4 {[%clk 0:02:28]}  Qc7 {[%clk 0:02:15]} 25. Bxb7 {[%clk 0:02:25]}  Qxb7 {[%clk 0:02:15]} 26. Bxc5 {[%clk 0:02:25]}  Bxc5 {[%clk 0:02:14]} 27. Qe2 {[%clk 0:02:24]}  Rd4 {[%clk 0:01:40]} 28. Nb3 {[%clk 0:02:15]}  Rdd8 {[%clk 0:01:29]} 29. Nd2 {[%clk 0:02:14]}  Rd4 {[%clk 0:01:28]} 30. Nf3 {[%clk 0:02:12]}  Rdd8 {[%clk 0:01:13]} 31. Ng5 {[%clk 0:02:03]}  Be7 {[%clk 0:01:06]} 32. Ne4 {[%clk 0:01:59]}  Qc6 {[%clk 0:01:05]} 33. h4 {[%clk 0:01:56]}  h5 {[%clk 0:01:05]} 34. Rxd8+ {[%clk 0:01:50]}  Rxd8 {[%clk 0:01:05]} 35. Rc2 {[%clk 0:01:48]}  Rd4 {[%clk 0:01:03]} 36. Nd2 {[%clk 0:01:46]}  Bc5 {[%clk 0:00:58]} 37. Nf3 {[%clk 0:01:45]}  Re4 {[%clk 0:00:55]} 38. Qd3 {[%clk 0:01:45]}  Re3 {[%clk 0:00:54]} 39. Qd8+ {[%clk 0:01:44]}  Kg7 {[%clk 0:00:53]} 40. Ng5 {[%clk 0:01:41]}  Qb7 {[%clk 0:00:41]} 41. Qf6+ {[%clk 0:01:39]}  Kg8 {[%clk 0:00:41]} 42. Rg2 {[%clk 0:01:33]}  Re1 {[%clk 0:00:34]} 43. Qd8+ {[%clk 0:01:30]}  Bf8 {[%clk 0:00:33]} 44. g4 {[%clk 0:01:23]}  hxg4 {[%clk 0:00:30]} 45. h5 {[%clk 0:01:20]}  gxh5 {[%clk 0:00:28]} 46. Qd2 {[%clk 0:01:12]}  Ra1 {[%clk 0:00:20]} 47. Qd3 {[%clk 0:01:05]}  f5 {[%clk 0:00:00]} 48. exf6 {[%clk 0:01:03]} 1-0